[Event "Late-Titled-Tuesday-Blitz-September-26-2023"]
[Site "Chess.com"]
[Date "2023.09.26"]
[Round "10"]
[White "Alphafischer2019"]
[Black "DrCeltic"]
[Result "1-0"]
[WhiteElo "2598"]
[BlackElo "2454"]
[TimeControl "180+1"]
[EndTime "15:51:04 PDT"]
[Termination "Alphafischer2019 won by resignation"]

1. Nf3 {[%clk 0:03:00.9]} 1... d5 {[%clk 0:02:58.7]} 2. g3 {[%clk 0:02:59.9]}
2... Nf6 {[%clk 0:02:57.6]} 3. Bg2 {[%clk 0:03:00]} 3... Bf5 {[%clk 0:02:58.5]}
4. O-O {[%clk 0:03:00.9]} 4... e6 {[%clk 0:02:57.8]} 5. d3 {[%clk 0:03:01.6]}
5... h6 {[%clk 0:02:58.2]} 6. b3 {[%clk 0:03:01]} 6... Be7 {[%clk 0:02:58.5]} 7.
Bb2 {[%clk 0:03:01.3]} 7... O-O {[%clk 0:02:58.6]} 8. Nbd2 {[%clk 0:03:01.5]}
8... a5 {[%clk 0:02:58.7]} 9. a4 {[%clk 0:03:00.6]} 9... Bh7 {[%clk 0:02:58.8]}
10. Qe1 {[%clk 0:02:57.7]} 10... c5 {[%clk 0:02:57.3]} 11. e4 {[%clk 0:02:57.5]}
11... Nc6 {[%clk 0:02:57.8]} 12. Qe2 {[%clk 0:02:57.5]} 12... Nb4 {[%clk
0:02:48.6]} 13. Rfc1 {[%clk 0:02:53.6]} 13... Qc7 {[%clk 0:02:38.4]} 14. Ne5
{[%clk 0:02:52.3]} 14... Rad8 {[%clk 0:02:32.1]} 15. f4 {[%clk 0:02:51.6]} 15...
Nd7 {[%clk 0:02:27.5]} 16. Nxd7 {[%clk 0:02:47.8]} 16... Qxd7 {[%clk 0:02:28.4]}
17. Nf3 {[%clk 0:02:41.5]} 17... c4 {[%clk 0:02:20.3]} 18. Ne5 {[%clk
0:02:38.3]} 18... cxd3 {[%clk 0:02:08.7]} 19. cxd3 {[%clk 0:02:32.1]} 19... Qd6
{[%clk 0:02:03.3]} 20. Rd1 {[%clk 0:02:20.2]} 20... Qb6+ {[%clk 0:02:02.4]} 21.
Kh1 {[%clk 0:02:19]} 21... Bf6 {[%clk 0:01:40.9]} 22. h4 {[%clk 0:02:10.6]}
22... Bxe5 {[%clk 0:01:35.7]} 23. Bxe5 {[%clk 0:02:09.2]} 23... d4 {[%clk
0:01:36.3]} 24. f5 {[%clk 0:01:51.6]} 24... exf5 {[%clk 0:01:33.8]} 25. exf5
{[%clk 0:01:52.5]} 25... Bxf5 {[%clk 0:01:33.3]} 26. Qf3 {[%clk 0:01:52.7]}
26... Bh7 {[%clk 0:01:17.6]} 27. Bf4 {[%clk 0:01:45.3]} 27... Rfe8 {[%clk
0:01:06.5]} 28. Rd2 {[%clk 0:01:43.1]} 28... Re7 {[%clk 0:01:03.3]} 29. Kh2
{[%clk 0:01:39.5]} 29... Rde8 {[%clk 0:01:03]} 30. Rc1 {[%clk 0:01:37]} 30...
Qa6 {[%clk 0:01:00.3]} 31. Rc4 {[%clk 0:01:36.3]} 31... Qg6 {[%clk 0:00:55.6]}
32. Rxd4 {[%clk 0:01:34.6]} 32... Nc6 {[%clk 0:00:48.9]} 33. Rd6 {[%clk
0:01:33.6]} 33... Re6 {[%clk 0:00:48.1]} 34. Rxe6 {[%clk 0:01:33.6]} 34... Qxe6
{[%clk 0:00:49]} 35. d4 {[%clk 0:01:33]} 35... Qe1 {[%clk 0:00:47]} 36. d5
{[%clk 0:01:32.1]} 36... Be4 {[%clk 0:00:42.7]} 37. Qf2 {[%clk 0:01:10.1]} 37...
Qxf2 {[%clk 0:00:42.5]} 38. Rxf2 {[%clk 0:01:11]} 38... Bxg2 {[%clk 0:00:42]}
39. Kxg2 {[%clk 0:01:09.4]} 39... Nb4 {[%clk 0:00:42.6]} 40. Rd2 {[%clk
0:01:07.9]} 40... Rd8 {[%clk 0:00:39.8]} 41. d6 {[%clk 0:01:08.4]} 41... f6
{[%clk 0:00:39.7]} 42. d7 {[%clk 0:01:07]} 42... Na6 {[%clk 0:00:35.4]} 43. Be3
{[%clk 0:01:07.4]} 43... Nb8 {[%clk 0:00:32.6]} 44. Rc2 {[%clk 0:01:02.5]} 44...
Kf7 {[%clk 0:00:25.2]} 45. Rc8 {[%clk 0:00:57.5]} 45... Ke7 {[%clk 0:00:25.4]}
46. Bb6 {[%clk 0:00:57.6]} 46... Rxd7 {[%clk 0:00:22]} 47. Rxb8 {[%clk
0:00:57.8]} 47... Rd2+ {[%clk 0:00:19.6]} 48. Kh3 {[%clk 0:00:56.8]} 48... g5
{[%clk 0:00:18.8]} 49. hxg5 {[%clk 0:00:55.3]} 49... fxg5 {[%clk 0:00:19.3]} 50.
Bxa5 {[%clk 0:00:55.5]} 50... Rd7 {[%clk 0:00:17.8]} 51. Bb4+ {[%clk 0:00:55.3]}
51... Kf6 {[%clk 0:00:18.6]} 52. a5 {[%clk 0:00:55.2]} 52... Kf5 {[%clk
0:00:18.8]} 53. Kg2 {[%clk 0:00:52.2]} 53... g4 {[%clk 0:00:18.3]} 54. Rf8+
{[%clk 0:00:51.3]} 54... Kg5 {[%clk 0:00:18.1]} 55. Rf4 {[%clk 0:00:50.9]} 55...
h5 {[%clk 0:00:18.1]} 56. Bc3 {[%clk 0:00:48.5]} 56... Rd3 {[%clk 0:00:17.5]}
57. Rc4 {[%clk 0:00:47.1]} 57... Re3 {[%clk 0:00:15.5]} 58. Bd2 {[%clk
0:00:46.9]} 1-0

[Event "Late-Titled-Tuesday-Blitz-September-26-2023"]
[Site "Chess.com"]
[Date "2023.09.26"]
[Round "10"]
[White "arminmusovic"]
[Black "GothamChess"]
[Result "0-1"]
[WhiteElo "2513"]
[BlackElo "2701"]
[TimeControl "180+1"]
[EndTime "15:51:06 PDT"]
[Termination "GothamChess won by checkmate"]

1. a3 {[%clk 0:02:56.1]} 1... b6 {[%clk 0:02:58.6]} 2. Nc3 {[%clk 0:02:56.3]}
2... Bb7 {[%clk 0:02:59.5]} 3. e4 {[%clk 0:02:57]} 3... e6 {[%clk 0:03:00]} 4.
Nf3 {[%clk 0:02:57.1]} 4... Nf6 {[%clk 0:02:59.7]} 5. e5 {[%clk 0:02:57.5]} 5...
Nd5 {[%clk 0:02:59.7]} 6. d4 {[%clk 0:02:57.6]} 6... c5 {[%clk 0:02:58.9]} 7.
dxc5 {[%clk 0:02:57.4]} 7... Nxc3 {[%clk 0:02:55.7]} 8. bxc3 {[%clk 0:02:57.4]}
8... Bxc5 {[%clk 0:02:56.3]} 9. Bd3 {[%clk 0:02:56.7]} 9... h6 {[%clk 0:02:48]}
10. O-O {[%clk 0:02:55.1]} 10... O-O {[%clk 0:02:46.6]} 11. Qe2 {[%clk
0:02:48.3]} 11... d6 {[%clk 0:02:44.2]} 12. Rd1 {[%clk 0:02:48.4]} 12... Qc7
{[%clk 0:02:43.7]} 13. Bf4 {[%clk 0:02:42.1]} 13... d5 {[%clk 0:02:41.6]} 14.
Nd4 {[%clk 0:02:33.4]} 14... Re8 {[%clk 0:02:32.3]} 15. Qg4 {[%clk 0:02:20.3]}
15... Kf8 {[%clk 0:02:24.1]} 16. Nb5 {[%clk 0:02:07.1]} 16... Qe7 {[%clk
0:02:21]} 17. Nd6 {[%clk 0:02:06.3]} 17... Bxd6 {[%clk 0:02:19.7]} 18. exd6
{[%clk 0:02:07.2]} 18... Qf6 {[%clk 0:02:19.2]} 19. Bb5 {[%clk 0:01:55.3]} 19...
Bc6 {[%clk 0:02:14.6]} 20. c4 {[%clk 0:01:45.6]} 20... Bxb5 {[%clk 0:02:11.2]}
21. cxb5 {[%clk 0:01:45.3]} 21... Nd7 {[%clk 0:02:11.9]} 22. Bg3 {[%clk
0:01:41.8]} 22... Rac8 {[%clk 0:02:06.4]} 23. Qa4 {[%clk 0:01:38.5]} 23... e5
{[%clk 0:01:58.7]} 24. Qxa7 {[%clk 0:01:34.4]} 24... Qxd6 {[%clk 0:01:58.6]} 25.
Qa4 {[%clk 0:01:19.9]} 25... d4 {[%clk 0:01:50.7]} 26. Qb3 {[%clk 0:01:13.5]}
26... Nc5 {[%clk 0:01:47.4]} 27. Qb4 {[%clk 0:01:13.4]} 27... g5 {[%clk
0:01:36.9]} 28. h4 {[%clk 0:00:53]} 28... f6 {[%clk 0:01:33.9]} 29. Qb1 {[%clk
0:00:44.4]} 29... Ne4 {[%clk 0:01:30.4]} 30. Qb3 {[%clk 0:00:41.1]} 30... Rc3
{[%clk 0:01:27.2]} 31. Qb4 {[%clk 0:00:39.2]} 31... Qxb4 {[%clk 0:01:23.7]} 32.
axb4 {[%clk 0:00:40.1]} 32... Rxc2 {[%clk 0:01:12.8]} 33. Ra6 {[%clk 0:00:40.3]}
33... Re6 {[%clk 0:01:12.2]} 34. Bh2 {[%clk 0:00:36.9]} 34... Nxf2 {[%clk
0:01:06]} 35. Rf1 {[%clk 0:00:37.1]} 35... Ng4 {[%clk 0:01:04.3]} 36. hxg5
{[%clk 0:00:37.2]} 36... hxg5 {[%clk 0:01:03.7]} 37. Bg3 {[%clk 0:00:35.1]}
37... Kf7 {[%clk 0:01:03]} 38. Ra7+ {[%clk 0:00:35]} 38... Kg6 {[%clk
0:01:02.7]} 39. Rb7 {[%clk 0:00:35.5]} 39... Ne3 {[%clk 0:00:40.9]} 40. Ra1
{[%clk 0:00:31.5]} 40... Rxg2+ {[%clk 0:00:40.6]} 41. Kh1 {[%clk 0:00:31.9]}
41... Rxg3 {[%clk 0:00:40]} 42. Kh2 {[%clk 0:00:29.4]} 42... Rg2+ {[%clk
0:00:36.8]} 43. Kh1 {[%clk 0:00:29.6]} 43... Rg4 {[%clk 0:00:34.4]} 44. Raa7
{[%clk 0:00:27.7]} 44... Kf5 {[%clk 0:00:24.3]} 45. Ra8 {[%clk 0:00:23.3]} 45...
e4 {[%clk 0:00:20.8]} 46. Rab8 {[%clk 0:00:21.2]} 46... d3 {[%clk 0:00:20.5]}
47. Rd8 {[%clk 0:00:21.1]} 47... Nc4 {[%clk 0:00:13.8]} 48. Rbd7 {[%clk
0:00:19.4]} 48... d2 {[%clk 0:00:12.3]} 49. Rd5+ {[%clk 0:00:19.7]} 49... Re5
{[%clk 0:00:12.1]} 50. Rd4 {[%clk 0:00:19.4]} 50... e3 {[%clk 0:00:11.7]} 51.
Rd3 {[%clk 0:00:19.7]} 51... e2 {[%clk 0:00:10.8]} 52. Rf3+ {[%clk 0:00:20.1]}
52... Ke4 {[%clk 0:00:10.8]} 53. Rd4+ {[%clk 0:00:19.7]} 53... Kxf3 {[%clk
0:00:06.4]} 54. Kh2 {[%clk 0:00:20.4]} 54... Rxd4 {[%clk 0:00:05.2]} 55. Kh3
{[%clk 0:00:21.3]} 55... Rh4# {[%clk 0:00:01.4]} 0-1

[Event "Late-Titled-Tuesday-Blitz-September-26-2023"]
[Site "Chess.com"]
[Date "2023.09.26"]
[Round "10"]
[White "moro182"]
[Black "Polish_fighter3000"]
[Result "0-1"]
[WhiteElo "2903"]
[BlackElo "3085"]
[TimeControl "180+1"]
[EndTime "15:51:22 PDT"]
[Termination "Polish_fighter3000 won on time"]

1. c4 {[%clk 0:03:00.9]} 1... e5 {[%clk 0:02:58.8]} 2. g3 {[%clk 0:03:00.7]}
2... c6 {[%clk 0:02:58.7]} 3. Nf3 {[%clk 0:03:00.9]} 3... e4 {[%clk 0:02:57.7]}
4. Nd4 {[%clk 0:03:01.1]} 4... Nf6 {[%clk 0:02:55.2]} 5. Bg2 {[%clk 0:02:57.7]}
5... Qb6 {[%clk 0:02:50.4]} 6. Nc2 {[%clk 0:02:55.7]} 6... d5 {[%clk 0:02:47.2]}
7. d3 {[%clk 0:02:49.3]} 7... Bc5 {[%clk 0:02:35.8]} 8. O-O {[%clk 0:02:44.5]}
8... exd3 {[%clk 0:02:33.4]} 9. exd3 {[%clk 0:02:32.6]} 9... dxc4 {[%clk
0:02:32.4]} 10. dxc4 {[%clk 0:02:26.2]} 10... Be6 {[%clk 0:02:28.5]} 11. Nc3
{[%clk 0:02:07.7]} 11... Be7 {[%clk 0:01:40.3]} 12. b3 {[%clk 0:02:05]} 12...
Nbd7 {[%clk 0:01:38.8]} 13. Be3 {[%clk 0:01:55.9]} 13... Qa5 {[%clk 0:01:37.3]}
14. Qd2 {[%clk 0:01:53.3]} 14... Qh5 {[%clk 0:01:15.9]} 15. h4 {[%clk
0:01:32.3]} 15... O-O {[%clk 0:01:12.6]} 16. Nd4 {[%clk 0:01:31.3]} 16... Nc5
{[%clk 0:00:56.8]} 17. b4 {[%clk 0:01:21.7]} 17... Bxc4 {[%clk 0:00:53.4]} 18.
bxc5 {[%clk 0:01:13.5]} 18... Bxf1 {[%clk 0:00:51.4]} 19. Rxf1 {[%clk
0:01:13.7]} 19... Bxc5 {[%clk 0:00:50.3]} 20. Na4 {[%clk 0:01:02.9]} 20... Bb6
{[%clk 0:00:31.6]} 21. Nxb6 {[%clk 0:00:48.7]} 21... axb6 {[%clk 0:00:32.5]} 22.
Bg5 {[%clk 0:00:48.9]} 22... Qg6 {[%clk 0:00:26]} 23. Qb2 {[%clk 0:00:31.1]}
23... b5 {[%clk 0:00:23.6]} 24. Nb3 {[%clk 0:00:31.2]} 24... h6 {[%clk
0:00:21.5]} 25. Be3 {[%clk 0:00:29.7]} 25... Rfd8 {[%clk 0:00:16.1]} 26. Nc5
{[%clk 0:00:27.4]} 26... Nd5 {[%clk 0:00:08.8]} 27. Bd4 {[%clk 0:00:23.4]} 27...
b6 {[%clk 0:00:07.1]} 28. Nb3 {[%clk 0:00:23.2]} 28... c5 {[%clk 0:00:04.2]} 29.
Be5 {[%clk 0:00:22.7]} 29... Rac8 {[%clk 0:00:02.9]} 30. Qe2 {[%clk 0:00:19.7]}
30... b4 {[%clk 0:00:02.7]} 31. h5 {[%clk 0:00:14.4]} 31... Qe6 {[%clk
0:00:02.6]} 32. Re1 {[%clk 0:00:11.7]} 32... Re8 {[%clk 0:00:02.8]} 33. Qd1
{[%clk 0:00:07.4]} 33... Rcd8 {[%clk 0:00:02.6]} 34. Qa1 {[%clk 0:00:05.2]}
34... f6 {[%clk 0:00:02.4]} 35. Bc3 {[%clk 0:00:04.9]} 35... Qf7 {[%clk
0:00:02.8]} 36. Rxe8+ {[%clk 0:00:04.1]} 36... Rxe8 {[%clk 0:00:02.9]} 37. Bd2
{[%clk 0:00:03.9]} 37... c4 {[%clk 0:00:03.5]} 38. Nd4 {[%clk 0:00:04.1]} 38...
c3 {[%clk 0:00:03.6]} 39. Be1 {[%clk 0:00:03.3]} 39... Qxh5 {[%clk 0:00:03.5]}
40. Qb1 {[%clk 0:00:02.5]} 40... Qe5 {[%clk 0:00:03.9]} 41. Nf3 {[%clk
0:00:02.4]} 41... Qe4 {[%clk 0:00:04.2]} 42. Qb3 {[%clk 0:00:02.7]} 42... Kh8
{[%clk 0:00:04.5]} 43. Kh2 {[%clk 0:00:02.6]} 43... b5 {[%clk 0:00:04.5]} 44.
Nh4 {[%clk 0:00:02.8]} 44... Qc4 {[%clk 0:00:03.5]} 45. Bxd5 {[%clk 0:00:02.3]}
45... Qxb3 {[%clk 0:00:02.9]} 46. Bxb3 {[%clk 0:00:03.2]} 46... g5 {[%clk
0:00:02.7]} 47. Ng6+ {[%clk 0:00:03.1]} 47... Kg7 {[%clk 0:00:03]} 48. Ne5
{[%clk 0:00:02.1]} 48... Rxe5 {[%clk 0:00:02.8]} 0-1

[Event "Late-Titled-Tuesday-Blitz-September-26-2023"]
[Site "Chess.com"]
[Date "2023.09.26"]
[Round "10"]
[White "FMVolodymyrSakun"]
[Black "bazar-wokzal"]
[Result "1-0"]
[WhiteElo "2657"]
[BlackElo "2664"]
[TimeControl "180+1"]
[EndTime "15:51:27 PDT"]
[Termination "FMVolodymyrSakun won by resignation"]

1. e4 {[%clk 0:03:00.9]} 1... Nc6 {[%clk 0:02:59.6]} 2. Nf3 {[%clk 0:03:00.1]}
2... d5 {[%clk 0:02:59.3]} 3. exd5 {[%clk 0:02:59.6]} 3... Qxd5 {[%clk
0:03:00.2]} 4. Nc3 {[%clk 0:02:59.4]} 4... Qa5 {[%clk 0:03:00.4]} 5. d4 {[%clk
0:02:59.5]} 5... Bg4 {[%clk 0:03:00.3]} 6. Bb5 {[%clk 0:02:53.3]} 6... O-O-O
{[%clk 0:02:59.7]} 7. Bxc6 {[%clk 0:02:49.3]} 7... bxc6 {[%clk 0:03:00.6]} 8. h3
{[%clk 0:02:49.7]} 8... Qh5 {[%clk 0:02:57.1]} 9. Qd3 {[%clk 0:02:37.2]} 9...
Bxf3 {[%clk 0:02:54.3]} 10. gxf3 {[%clk 0:02:36.1]} 10... e6 {[%clk 0:02:50.9]}
11. Qa6+ {[%clk 0:02:18.3]} 11... Kd7 {[%clk 0:02:50.8]} 12. Ke2 {[%clk
0:02:07.3]} 12... Bd6 {[%clk 0:02:42.7]} 13. Ne4 {[%clk 0:01:44.9]} 13... Ne7
{[%clk 0:02:41.6]} 14. Be3 {[%clk 0:01:35.4]} 14... Qb5+ {[%clk 0:02:27.6]} 15.
Qxb5 {[%clk 0:01:34.9]} 15... cxb5 {[%clk 0:02:28.5]} 16. a4 {[%clk 0:01:34.5]}
16... a6 {[%clk 0:02:26.4]} 17. axb5 {[%clk 0:01:11.5]} 17... axb5 {[%clk
0:02:26.7]} 18. Ra5 {[%clk 0:01:11.7]} 18... Rb8 {[%clk 0:02:09.7]} 19. Ng5
{[%clk 0:01:02.4]} 19... Ke8 {[%clk 0:01:55.4]} 20. Rha1 {[%clk 0:01:01.3]}
20... Nf5 {[%clk 0:01:55]} 21. Ra7 {[%clk 0:00:52.5]} 21... h6 {[%clk
0:01:46.5]} 22. Ne4 {[%clk 0:00:52.2]} 22... Kd7 {[%clk 0:01:28.5]} 23. R1a6
{[%clk 0:00:45.9]} 23... Rhc8 {[%clk 0:01:19.8]} 24. c3 {[%clk 0:00:39.3]} 24...
Kd8 {[%clk 0:01:06.8]} 25. Kd3 {[%clk 0:00:34.6]} 25... Be7 {[%clk 0:00:52.8]}
26. b3 {[%clk 0:00:33.1]} 26... Nh4 {[%clk 0:00:41]} 27. Ke2 {[%clk 0:00:32.3]}
27... g5 {[%clk 0:00:36.5]} 28. f4 {[%clk 0:00:29.5]} 28... f5 {[%clk
0:00:34.3]} 29. Nc5 {[%clk 0:00:29.8]} 29... Bxc5 {[%clk 0:00:34.1]} 30. dxc5
{[%clk 0:00:30.7]} 30... gxf4 {[%clk 0:00:20.5]} 31. Bxf4 {[%clk 0:00:31.6]}
31... Ng6 {[%clk 0:00:17.2]} 32. Bxh6 {[%clk 0:00:28.8]} 32... Kd7 {[%clk
0:00:15.1]} 33. Rd6+ {[%clk 0:00:25.3]} 33... Ke7 {[%clk 0:00:14.9]} 34. Bg5+
{[%clk 0:00:25]} 34... Kf7 {[%clk 0:00:13.3]} 35. Rc6 {[%clk 0:00:25]} 35... Ne5
{[%clk 0:00:12.4]} 36. Rcxc7+ {[%clk 0:00:24.9]} 36... Rxc7 {[%clk 0:00:13]} 37.
Rxc7+ {[%clk 0:00:25.5]} 37... Kg6 {[%clk 0:00:13.8]} 38. Bf4 {[%clk 0:00:24.6]}
38... Kf6 {[%clk 0:00:09.3]} 39. Ra7 {[%clk 0:00:18]} 39... Rc8 {[%clk 0:00:09]}
40. Bxe5+ {[%clk 0:00:17]} 40... Kxe5 {[%clk 0:00:09]} 41. b4 {[%clk 0:00:17.9]}
41... Kd5 {[%clk 0:00:08.5]} 42. Kd3 {[%clk 0:00:15.7]} 42... e5 {[%clk
0:00:08.5]} 43. Rd7+ {[%clk 0:00:15.7]} 43... Ke6 {[%clk 0:00:09.1]} 44. Rd6+
{[%clk 0:00:16.1]} 44... Ke7 {[%clk 0:00:09.8]} 45. Rb6 {[%clk 0:00:16.4]} 45...
Rd8+ {[%clk 0:00:09.5]} 46. Ke2 {[%clk 0:00:14.9]} 46... e4 {[%clk 0:00:08.7]}
47. Rxb5 {[%clk 0:00:11.1]} 47... Rd3 {[%clk 0:00:08.8]} 48. Rb7+ {[%clk
0:00:11.1]} 48... Ke6 {[%clk 0:00:08.7]} 49. b5 {[%clk 0:00:09.3]} 49... Rxc3
{[%clk 0:00:08.6]} 50. c6 {[%clk 0:00:09.5]} 50... f4 {[%clk 0:00:09.2]} 51. Kd2
{[%clk 0:00:09.8]} 51... Rc5 {[%clk 0:00:08.1]} 52. c7 {[%clk 0:00:09.3]} 52...
Kd5 {[%clk 0:00:04.4]} 53. b6 {[%clk 0:00:08.9]} 53... Kd4 {[%clk 0:00:05]} 54.
Rb8 {[%clk 0:00:08.7]} 54... e3+ {[%clk 0:00:05.7]} 55. fxe3+ {[%clk 0:00:09]}
55... fxe3+ {[%clk 0:00:06.3]} 56. Ke2 {[%clk 0:00:09.5]} 56... Rc2+ {[%clk
0:00:07]} 57. Kf3 {[%clk 0:00:09.8]} 57... Rf2+ {[%clk 0:00:07.4]} 58. Kg3
{[%clk 0:00:10.2]} 1-0

[Event "Late-Titled-Tuesday-Blitz-September-26-2023"]
[Site "Chess.com"]
[Date "2023.09.26"]
[Round "10"]
[White "The_Princess_Moon"]
[Black "Bodhanas"]
[Result "1/2-1/2"]
[WhiteElo "2293"]
[BlackElo "2122"]
[TimeControl "180+1"]
[EndTime "15:51:29 PDT"]
[Termination "Game drawn - insufficient material"]

1. e4 {[%clk 0:03:00.9]} 1... e6 {[%clk 0:02:48.7]} 2. Qe2 {[%clk 0:02:59.2]}
2... b6 {[%clk 0:02:45.2]} 3. g3 {[%clk 0:02:57.7]} 3... Bb7 {[%clk 0:02:44.6]}
4. Bg2 {[%clk 0:02:57.9]} 4... d6 {[%clk 0:02:40.2]} 5. Nc3 {[%clk 0:02:52.8]}
5... Nd7 {[%clk 0:02:39.3]} 6. d4 {[%clk 0:02:51.4]} 6... e5 {[%clk 0:02:32.4]}
7. Nf3 {[%clk 0:02:48.5]} 7... Ngf6 {[%clk 0:02:24.3]} 8. O-O {[%clk 0:02:36.8]}
8... Be7 {[%clk 0:02:21.2]} 9. dxe5 {[%clk 0:02:32.4]} 9... dxe5 {[%clk
0:02:13.8]} 10. Rd1 {[%clk 0:02:32.1]} 10... Bd6 {[%clk 0:02:08.6]} 11. Nb5
{[%clk 0:02:21.3]} 11... O-O {[%clk 0:02:00.5]} 12. Nxd6 {[%clk 0:02:19.1]}
12... cxd6 {[%clk 0:01:59.8]} 13. Bg5 {[%clk 0:02:10.2]} 13... Qc7 {[%clk
0:01:53.5]} 14. Ne1 {[%clk 0:02:03.4]} 14... h6 {[%clk 0:01:50]} 15. Bxf6 {[%clk
0:01:51.7]} 15... Nxf6 {[%clk 0:01:49.2]} 16. c3 {[%clk 0:01:43.6]} 16... Rad8
{[%clk 0:01:46.9]} 17. Nc2 {[%clk 0:01:40.2]} 17... d5 {[%clk 0:01:39.1]} 18.
exd5 {[%clk 0:01:39.2]} 18... Bxd5 {[%clk 0:01:37]} 19. Bxd5 {[%clk 0:01:32.6]}
19... Nxd5 {[%clk 0:01:36]} 20. c4 {[%clk 0:01:23.6]} 20... Nf6 {[%clk 0:01:25]}
21. Ne3 {[%clk 0:01:23.3]} 21... Rxd1+ {[%clk 0:01:18.7]} 22. Rxd1 {[%clk
0:01:22.7]} 22... Rd8 {[%clk 0:01:16]} 23. b3 {[%clk 0:01:16.3]} 23... Rxd1+
{[%clk 0:01:09.9]} 24. Qxd1 {[%clk 0:01:17.2]} 24... Qd7 {[%clk 0:01:07.9]} 25.
Qa1 {[%clk 0:00:59]} 25... Qd4 {[%clk 0:01:02.2]} 26. Qxd4 {[%clk 0:00:50.9]}
26... exd4 {[%clk 0:01:01.5]} 27. Nf5 {[%clk 0:00:50.5]} 27... d3 {[%clk
0:00:59.6]} 28. Kf1 {[%clk 0:00:50.9]} 28... Ne4 {[%clk 0:00:51.8]} 29. Ke1
{[%clk 0:00:41.7]} 29... d2+ {[%clk 0:00:48.6]} 30. Kd1 {[%clk 0:00:41.4]} 30...
Nxf2+ {[%clk 0:00:45.3]} 31. Kxd2 {[%clk 0:00:41.2]} 31... Ng4 {[%clk
0:00:33.7]} 32. h3 {[%clk 0:00:39.8]} 32... Nf6 {[%clk 0:00:31.2]} 33. Ne7+
{[%clk 0:00:37.1]} 33... Kf8 {[%clk 0:00:28.4]} 34. Nc8 {[%clk 0:00:37.4]} 34...
Ne4+ {[%clk 0:00:28.1]} 35. Ke3 {[%clk 0:00:37]} 35... Nxg3 {[%clk 0:00:27.6]}
36. Nxa7 {[%clk 0:00:36.2]} 36... Nf5+ {[%clk 0:00:25.3]} 37. Kf4 {[%clk
0:00:36.2]} 37... Ne7 {[%clk 0:00:20.8]} 38. b4 {[%clk 0:00:32]} 38... Ke8
{[%clk 0:00:20.2]} 39. a4 {[%clk 0:00:32]} 39... Kd7 {[%clk 0:00:19.8]} 40. Nb5
{[%clk 0:00:32.1]} 40... f6 {[%clk 0:00:17.4]} 41. Nc3 {[%clk 0:00:31.5]} 41...
g5+ {[%clk 0:00:17.5]} 42. Kg4 {[%clk 0:00:29.4]} 42... f5+ {[%clk 0:00:16.4]}
43. Kh5 {[%clk 0:00:23.3]} 43... f4 {[%clk 0:00:16.5]} 44. Kxh6 {[%clk
0:00:20.9]} 44... f3 {[%clk 0:00:16.2]} 45. Ne4 {[%clk 0:00:20.2]} 45... Nc6
{[%clk 0:00:15.7]} 46. b5 {[%clk 0:00:19.1]} 46... Ne5 {[%clk 0:00:15.4]} 47.
Kxg5 {[%clk 0:00:18.4]} 47... Nxc4 {[%clk 0:00:15.4]} 48. Kf4 {[%clk 0:00:18]}
48... Nb2 {[%clk 0:00:14.1]} 49. Kxf3 {[%clk 0:00:18.1]} 49... Nxa4 {[%clk
0:00:14.6]} 50. h4 {[%clk 0:00:17.3]} 50... Nb2 {[%clk 0:00:14.7]} 51. h5 {[%clk
0:00:16.7]} 51... Ke6 {[%clk 0:00:15.2]} 52. h6 {[%clk 0:00:16.3]} 52... Kf7
{[%clk 0:00:15.3]} 53. Nd6+ {[%clk 0:00:14.3]} 53... Kg6 {[%clk 0:00:14.2]} 54.
Ke4 {[%clk 0:00:14.7]} 54... Na4 {[%clk 0:00:12.3]} 55. Nf5 {[%clk 0:00:13.1]}
55... Nc3+ {[%clk 0:00:11.1]} 56. Ke5 {[%clk 0:00:06.9]} 56... Nxb5 {[%clk
0:00:11]} 57. Ne7+ {[%clk 0:00:05.7]} 57... Kxh6 {[%clk 0:00:10.9]} 58. Nd5
{[%clk 0:00:06.4]} 58... Nc3 {[%clk 0:00:09.9]} 59. Nxb6 {[%clk 0:00:07]}
1/2-1/2